bitfinex-derivatives/quotes_BTCF0:USTF0_20250506
["timestamp","ask_amount","ask_price","bid_price","bid_amount"]
[1746540643357,0.2125432,94122.0,94121.0,0.1613]
[1746540643559,0.0531352,94124.0,94119.0,0.1608]
[1746540643768,0.2125478,94120.0,94119.0,0.1608]
[1746540643966,0.21255,94119.0,94112.0,0.1629023]
[1746540644268,0.54645,94119.0,94118.0,1.8739623]
[1746540644465,0.1631,94119.0,94118.0,1.8739623]
[1746540644668,0.3608,94145.0,94118.0,2.19942195]
[1746540644866,0.5732941,94145.0,94144.0,0.2124936]
[1746540645068,0.2125026,94140.0,94139.0,0.2656265]
[1746540645575,0.2125026,94140.0,94139.0,0.2125005]
[1746540645870,0.2125026,94140.0,94139.0,1.7125005]
[1746540646674,0.2125026,94140.0,94139.0,1.5]
[1746540647976,0.2125026,94140.0,94139.0,1.7125049]
[1746540648476,0.2125026,94140.0,94139.0,1.5]
[1746540649073,0.0531351,94125.0,94121.0,0.1613]
[1746540649278,0.1656,94124.0,94118.0,0.36141]
[1746540649576,0.21255,94119.0,94118.0,0.36141]
[1746540650566,0.21255,94119.0,94118.0,0.7409623]
[1746540650973,0.37815,94119.0,94118.0,2.2409623]
[1746540651370,0.37815,94119.0,94118.0,1.66761]
[1746540651371,0.1656,94119.0,94118.0,1.66761]
[1746540651572,0.37815,94119.0,94118.0,2.0429623]
[1746540651879,0.0531327,94128.0,94126.0,0.212532]
[1746540652177,0.212541,94123.0,94122.0,0.2656768]
[1746540652568,0.2125478,94121.0,94120.0,0.2125441]
[1746540652767,0.2125478,94121.0,94120.0,0.22821967]
[1746540652967,0.3275,94121.0,94120.0,0.22821967]
[1746540653173,0.3275,94121.0,94120.0,0.39611967]
[1746540653375,0.1605,94121.0,94120.0,0.75691967]
[1746540654769,0.3608,94151.0,94120.0,0.90062357]
[1746540654970,0.318,94150.0,94141.0,0.053125]
[1746540655173,0.2124895,94146.0,94145.0,0.2124902]
[1746540655375,0.0531211,94148.0,94145.0,1.5]
[1746540655676,0.2124891,94146.0,94145.0,1.51567557]
[1746540656476,0.5276891,94146.0,94145.0,1.51567557]
[1746540656672,0.6977891,94146.0,94145.0,1.51567557]
[1746540657176,0.6977891,94146.0,94137.0,0.2125087]
[1746540657177,0.2125049,94139.0,94135.0,0.2125121]
[1746540657377,0.4853,94146.0,94121.0,0.0531363]
[1746540657378,0.8461,94146.0,94121.0,0.0531363]
[1746540657579,0.8461,94146.0,94125.0,1.5]
[1746540657580,0.3608,94136.0,94125.0,1.5]
[1746540657881,0.2125478,94120.0,94119.0,0.3608]
[1746540658080,0.2125478,94120.0,94119.0,0.57335]
[1746540658283,0.3386,94121.0,94120.0,0.2125478]
[1746540658483,0.5511455,94121.0,94120.0,0.2125478]
[1746540659075,0.1693,94121.0,94120.0,0.3685478]
[1746540659277,0.2125332,94127.0,94126.0,0.212532]
[1746540659586,0.265678,94124.0,94123.0,0.0531351]
[1746540659777,0.265678,94124.0,94123.0,0.2125357]
[1746540660085,0.3188132,94124.0,94123.0,0.22819275]
[1746540660380,0.265678,94124.0,94123.0,0.22819275]
[1746540660584,0.265678,94124.0,94123.0,0.01565705]
[1746540660782,0.265678,94124.0,94123.0,1.51565705]
[1746540661283,0.265678,94124.0,94123.0,0.01565705]
[1746540662577,0.471922,94124.0,94123.0,0.01565705]
[1746540663090,0.2125523,94118.0,94117.0,1.50159375]
[1746540663283,0.5733523,94118.0,94117.0,1.50159375]
[1746540663879,0.9103523,94118.0,94117.0,1.50159375]
[1746540664075,0.2125636,94113.0,94112.0,0.00159376]
[1746540664682,0.2125636,94113.0,94112.0,1.50159376]
[1746540664884,0.4799636,94113.0,94112.0,1.50159376]
[1746540665072,0.3799636,94113.0,94112.0,1.71415956]
[1746540665274,0.0531302,94132.0,94114.0,0.0531402]
[1746540665275,0.0531343,94125.0,94114.0,0.0531402]
[1746540665476,0.2125513,94120.0,94119.0,0.2125441]
[1746540665779,0.0531374,94120.0,94116.0,0.3608]
[1746540665979,0.0531374,94120.0,94112.0,0.00159376]
[1746540665980,0.2125636,94114.0,94113.0,0.4260991]
[1746540666171,0.2125636,94114.0,94113.0,0.1604]
[1746540666379,0.2125636,94113.0,94112.0,0.00159376]
[1746540666588,0.8006636,94113.0,94112.0,0.00159376]
[1746540666876,0.7006636,94113.0,94112.0,0.00159376]
[1746540668376,0.8006636,94113.0,94112.0,0.00159376]
[1746540669088,0.7006636,94113.0,94112.0,0.00159376]
[1746540673888,0.8006636,94113.0,94112.0,0.00159376]
[1746540674092,0.7006636,94113.0,94112.0,0.00159376]
[1746540674792,0.5356636,94113.0,94112.0,0.00159376]
[1746540678589,0.2125626,94114.0,94112.0,0.00159376]
[1746540678789,0.1554,94127.0,94112.0,0.00159376]
[1746540678790,0.0531271,94138.0,94115.0,0.2656927]
[1746540678990,0.2125535,94118.0,94117.0,0.21255]
[1746540679298,0.2125568,94116.0,94115.0,0.2656957]
[1746540679491,0.2125568,94116.0,94115.0,0.2125565]
[1746540679795,0.2125568,94116.0,94115.0,1.7125565]
[1746540680595,0.2125568,94116.0,94115.0,1.5]
[1746540680796,0.2125568,94116.0,94115.0,1.7125591]
[1746540681892,0.2125568,94116.0,94115.0,1.5]
[1746540682391,0.2125568,94116.0,94115.0,1.7125591]
[1746540683195,0.2125568,94116.0,94115.0,1.5]
[1746540683396,0.2125613,94114.0,94113.0,0.1657]
[1746540684091,0.5293613,94114.0,94113.0,0.1657]
[1746540685689,0.3676613,94114.0,94113.0,0.1657]
[1746540685892,0.5370613,94114.0,94113.0,0.1657]
[1746540686097,0.6370613,94114.0,94113.0,0.1657]
[1746540686485,0.6370613,94114.0,94101.0,0.1547]
[1746540686486,0.2126178,94089.0,94082.0,0.00159435]
[1746540686692,0.4139512,94095.0,94088.0,0.17157]
[1746540686995,0.4139512,94095.0,94090.0,0.2657623]
[1746540686996,0.2126171,94091.0,94090.0,0.2657623]
[1746540687196,0.2126171,94091.0,94090.0,0.212609]
[1746540688196,0.2126171,94091.0,94090.0,0.367309]
[1746540690102,0.2126171,94091.0,94090.0,0.1547]
[1746540690397,0.3825171,94091.0,94090.0,0.1547]
[1746540691298,0.3825171,94091.0,94089.0,0.1579]
[1746540691299,0.2126155,94090.0,94089.0,0.1579]
[1746540692891,0.2126155,94090.0,94089.0,0.3164]
[1746540693087,0.2126155,94090.0,94089.0,0.5290178]
[1746540693286,0.2126155,94090.0,94089.0,0.3164]
[1746540694100,0.2122555,94090.0,94089.0,0.3164]
[1746540697696,0.3674555,94090.0,94089.0,0.3164]
[1746540697899,0.3674555,94090.0,94089.0,0.1579]
[1746540699200,0.2126178,94089.0,94088.0,0.00057]
[1746540699392,0.5229178,94089.0,94088.0,0.00057]
[1746540700004,0.2126246,94086.0,94085.0,0.00106286]
[1746540700204,0.5734246,94086.0,94085.0,0.00106286]
[1746540701403,0.3608,94086.0,94085.0,0.00106286]
[1746540701707,0.2126246,94086.0,94085.0,0.21368966]
[1746540701903,0.2126246,94086.0,94085.0,0.00106286]
[1746540702108,0.2126219,94088.0,94087.0,0.2126223]
[1746540702408,0.2126246,94086.0,94085.0,0.00106286]
[1746540702909,0.2126246,94086.0,94085.0,1.50106286]
[1746540703207,0.2126246,94086.0,94085.0,1.71368966]
[1746540703708,0.2126246,94086.0,94085.0,1.50106286]
[1746540704101,0.3608,94124.0,94085.0,1.50106286]
[1746540704407,0.2125899,94102.0,94096.0,0.4139502]
[1746540704597,0.2125899,94102.0,94101.0,0.2125907]
[1746540704797,0.2125854,94104.0,94103.0,0.2125862]
[1746540704994,0.1598,94107.0,94099.0,0.0531482]
[1746540705198,0.2125828,94105.0,94104.0,0.2125825]
[1746540705402,0.2125839,94104.0,94103.0,1.5]
[1746540705707,0.2125839,94104.0,94103.0,1.7125862]
[1746540706104,0.2125839,94104.0,94103.0,1.5]
[1746540706806,0.2126246,94086.0,94076.0,0.0531615]
[1746540707114,0.2126246,94086.0,94084.0,0.212629]
[1746540707299,0.2126246,94086.0,94085.0,1.50106286]
[1746540707806,0.1591,94088.0,94087.0,0.2126223]
[1746540708014,0.2126246,94087.0,94086.0,0.2126243]
[1746540708914,0.2126246,94086.0,94085.0,1.50106286]
[1746540709101,0.2126246,94086.0,94085.0,1.71368966]
[1746540709910,0.2126193,94090.0,94089.0,0.2126173]
[1746540710212,0.2126201,94088.0,94087.0,0.2657754]
[1746540710412,0.1126201,94088.0,94087.0,0.2657754]
[1746540711309,0.2126173,94090.0,94089.0,0.2126178]
[1746540711510,0.15748153,94110.0,94089.0,0.0531544]
[1746540711712,0.2125921,94101.0,94100.0,0.2125892]
[1746540712009,0.2126054,94096.0,94095.0,0.2126033]
[1746540712210,0.3734929,94101.0,94100.0,0.2125929]
[1746540712512,0.1619,94105.0,94098.0,0.0531488]
[1746540712513,0.212595,94100.0,94099.0,0.2125912]
[1746540712811,0.212595,94100.0,94099.0,0.3800912]
[1746540713813,0.2125849,94104.0,94103.0,0.2125817]
[1746540714003,0.212592,94103.0,94102.0,0.2125882]
[1746540714205,0.2657388,94103.0,94102.0,0.2125882]
[1746540714704,0.2125929,94100.0,94099.0,0.1675]
[1746540717412,0.2125929,94100.0,94099.0,0.3800945]
[1746540717804,0.2125929,94100.0,94099.0,0.1675]
[1746540718103,0.0531394,94116.0,94099.0,0.1675]
[1746540718309,0.2125771,94107.0,94106.0,0.3608]
[1746540718711,0.2125771,94107.0,94106.0,1.8608]
[1746540719009,0.2125771,94107.0,94106.0,2.0733794]
[1746540719206,0.2125771,94107.0,94106.0,2.2513794]
[1746540720206,0.2125771,94107.0,94106.0,2.0733794]
[1746540720606,0.2125771,94107.0,94106.0,1.7125794]
[1746540721714,0.2125771,94107.0,94106.0,1.71930549]
[1746540722012,0.1062872,94109.0,94106.0,1.71930549]
[1746540722013,0.2657177,94109.0,94108.0,0.2125749]
[1746540722209,0.3272,94115.0,94114.0,0.2125613]
[1746540723007,0.265712,94113.0,94112.0,0.212564]
[1746540723204,0.1583,94129.0,94112.0,0.3608]
[1746540723409,0.2656812,94123.0,94122.0,0.2125415]
[1746540723607,0.2125455,94123.0,94122.0,0.2125415]
[1746540723906,0.1683,94128.0,94127.0,0.212532]
[1746540724105,0.3608,94138.0,94127.0,1.5]
[1746540724314,0.4139271,94138.0,94132.0,0.2125188]
[1746540724505,0.1634,94137.0,94134.0,0.2125162]
[1746540724703,0.2125123,94136.0,94134.0,0.2125162]
[1746540724908,0.2125122,94136.0,94134.0,0.2125162]
[1746540725308,0.2140139,94135.0,94134.0,0.2125162]
[1746540727913,0.0015,94135.0,94134.0,0.2125162]
[1746540728320,0.0015,94135.0,94134.0,0.3187482]
[1746540728511,0.001,94146.0,94145.0,0.2124913]
[1746540728714,0.001,94146.0,94145.0,0.5732913]
[1746540728909,0.001,94146.0,94145.0,2.07969139]
[1746540729110,0.0531163,94157.0,94156.0,0.212462]
[1746540729309,0.2124717,94157.0,94156.0,0.212462]
[1746540730021,0.1614,94159.0,94158.0,0.212462]
[1746540730320,0.3738597,94159.0,94158.0,0.212462]
[1746540730517,0.0015,94170.0,94167.0,0.2124417]
[1746540730822,0.3738372,94169.0,94168.0,0.2124394]
[1746540731018,0.1614,94169.0,94168.0,0.2124394]
[1746540731316,0.0015,94170.0,94169.0,0.2124372]
[1746540731921,0.0015,94170.0,94169.0,1.7124372]
[1746540733024,0.0015,94170.0,94169.0,1.72790444]
[1746540733215,0.001,94176.0,94173.0,0.2124281]
[1746540733415,0.001,94176.0,94173.0,0.5732281]
[1746540733620,0.001,94176.0,94173.0,0.69488333]
[1746540733824,0.001,94176.0,94173.0,0.67941609]
[1746540734014,0.001,94176.0,94173.0,2.51461609]
[1746540736616,0.001,94176.0,94173.0,2.52273918]
[1746540737321,0.001,94176.0,94173.0,2.4084281]
[1746540738019,1e-07,94174.0,94173.0,2.52271048]
[1746540738219,1e-07,94174.0,94173.0,2.55271048]
[1746540738415,1e-07,94176.0,94175.0,0.2124236]
[1746540738719,0.3608,94207.0,94199.0,0.2123695]
[1746540739122,0.3608,94207.0,94199.0,1.7123695]
[1746540739510,0.1647,94210.0,94199.0,1.7123695]
[1746540739511,0.1647,94210.0,94199.0,1.8185255]
[1746540739713,0.0530768,94227.0,94199.0,2.1368255]
[1746540739918,0.3608,94253.0,94201.0,0.530912]
[1746540740120,0.1678,94247.0,94235.0,0.5730884]
[1746540740323,0.3608,94253.0,94235.0,0.5730884]
[1746540740324,0.1549,94252.0,94235.0,0.5730884]
[1746540740513,0.1549,94246.0,94235.0,0.5730884]
[1746540740722,0.1549,94246.0,94235.0,2.0730884]
[1746540740921,0.0530666,94245.0,94235.0,2.3957884]
[1746540741118,0.3608,94253.0,94235.0,2.40231963]
[1746540741323,0.2122575,94249.0,94235.0,2.51627113]
[1746540741518,0.2122585,94249.0,94235.0,2.51627113]
[1746540741719,0.2122603,94248.0,94235.0,2.51627113]
[1746540741918,0.2122825,94238.0,94235.0,2.51627113]
[1746540742119,0.0530655,94247.0,94235.0,2.51627113]
[1746540742319,0.1549,94246.0,94235.0,2.51627113]
[1746540742514,0.2122722,94243.0,94235.0,2.51627113]
[1746540742723,0.0530649,94248.0,94235.0,2.51627113]
[1746540742923,0.2122825,94238.0,94235.0,2.51627113]
[1746540743228,0.0015,94240.0,94235.0,2.51627113]
[1746540743527,0.2132861,94236.0,94235.0,1.5]
[1746540743821,0.2123357,94215.0,94212.0,0.3608]
[1746540744129,0.2654194,94215.0,94214.0,0.2654166]
[1746540744324,0.2654194,94215.0,94214.0,1.7123328]
[1746540745029,0.3810301,94217.0,94216.0,0.2123312]
[1746540745222,0.2123177,94222.0,94221.0,0.2123171]
[1746540745414,0.2123312,94219.0,94218.0,0.2123184]
[1746540745732,0.2123312,94219.0,94218.0,1.7123184]
[1746540746031,0.2123312,94219.0,94218.0,1.5]
[1746540746229,0.2123537,94208.0,94207.0,0.21235]
[1746540746621,0.2123537,94206.0,94205.0,0.3608]
[1746540746816,0.2123537,94206.0,94205.0,1.8608]
[1746540747021,0.2123537,94206.0,94205.0,2.073156]
[1746540747323,0.2654566,94203.0,94197.0,0.00071]
[1746540747524,0.2654566,94203.0,94202.0,0.2123567]
[1746540747723,0.2123695,94201.0,94200.0,0.2123658]
[1746540747924,0.2123695,94201.0,94200.0,1.7123658]
[1746540748323,0.2123695,94201.0,94200.0,1.7123673]
[1746540750324,0.2123695,94201.0,94200.0,1.5]
[1746540750832,0.2123695,94201.0,94200.0,1.7123673]
[1746540752425,0.1547,94202.0,94201.0,0.212365]
[1746540752929,0.3670627,94202.0,94201.0,0.379565]
[1746540753430,0.0530906,94203.0,94200.0,1.8608]
[1746540753631,0.2123718,94198.0,94197.0,0.00071]
[1746540754132,0.3185318,94198.0,94197.0,1.50071]
[1746540754837,0.2123718,94198.0,94197.0,1.50071]
[1746540756028,0.3764718,94198.0,94197.0,1.50071]
[1746540759628,0.5338718,94198.0,94197.0,1.50071]
[1746540759832,0.5338718,94198.0,94197.0,1.5]
[1746540763935,0.2123718,94198.0,94197.0,1.5]
[1746540764939,0.5312718,94198.0,94197.0,1.5]
[1746540767532,0.2123943,94188.0,94187.0,0.00159257]
[1746540767733,0.6731943,94188.0,94187.0,7e-08]
[1746540767938,0.2124101,94181.0,94180.0,7e-08]
[1746540768148,0.2124214,94176.0,94160.0,0.1605]
[1746540768340,0.5732214,94176.0,94160.0,0.1605]
[1746540768641,0.6794054,94176.0,94160.0,1.6605]
[1746540769936,0.2124575,94160.0,94159.0,0.16196854]
[1746540770133,0.5732575,94160.0,94159.0,0.16196854]
[1746540770340,0.5732575,94160.0,94159.0,1.66196854]
[1746540771339,0.5601137,94162.0,94159.0,1.66196854]
[1746540771340,0.1701,94162.0,94159.0,1.66196854]
[1746540771546,0.3608,94187.0,94161.0,0.3608]
[1746540771732,0.0531011,94184.0,94168.0,0.0531096]
[1746540771937,0.2124315,94172.0,94169.0,0.3117]
[1746540772138,0.2124322,94172.0,94170.0,0.3608]
[1746540772541,0.212423,94176.0,94171.0,0.3117]
[1746540772747,0.1574,94177.0,94171.0,0.3117]
[1746540772948,0.2124249,94175.0,94171.0,0.5241323]
[1746540773143,0.1574,94177.0,94171.0,0.3117]
[1746540773642,0.2124157,94179.0,94176.0,0.2124214]
[1746540773848,0.3608,94196.0,94177.0,0.332]
[1746540774050,0.2124112,94181.0,94177.0,0.332]
[1746540774742,0.2124064,94183.0,94177.0,0.332]
[1746540774946,0.1702,94186.0,94178.0,0.3608]
[1746540775149,0.2123926,94189.0,94185.0,0.2124009]
[1746540775351,0.2123953,94188.0,94186.0,0.332]
[1746540775745,0.3608,94217.0,94186.0,0.6928]
[1746540775941,0.1,94203.0,94187.0,1.5]
[1746540776140,0.0530919,94200.0,94192.0,0.053096]
[1746540776348,0.1702,94199.0,94196.0,0.2123759]
[1746540776648,0.1702,94199.0,94197.0,0.3281]
[1746540776851,0.2123718,94198.0,94197.0,0.3281]
[1746540780440,0.2123943,94188.0,94187.0,1.5]
[1746540780647,0.2123943,94188.0,94187.0,1.6561]
[1746540781356,0.2123943,94188.0,94187.0,1.8199]
[1746540783156,0.2123943,94188.0,94187.0,1.6561]
[1746540783344,0.2123943,94188.0,94187.0,0.1561]
[1746540783540,0.3748943,94188.0,94187.0,0.1561]
[1746540783746,0.6795,94197.0,94189.0,0.2123902]
[1746540783947,0.0530946,94195.0,94189.0,0.2123904]
[1746540784149,0.212382,94194.0,94189.0,0.2123914]
[1746540784357,0.6795,94202.0,94190.0,0.3182]
[1746540784651,0.1611,94203.0,94190.0,0.3182]
[1746540784856,0.2123822,94194.0,94191.0,0.2123875]
[1746540785052,0.212383,94193.0,94192.0,0.3182]
[1746540785356,0.2123804,94195.0,94192.0,0.3182]
[1746540785656,0.2123823,94194.0,94192.0,0.3182]
[1746540786555,0.0530948,94195.0,94192.0,0.3182]
[1746540786760,0.212383,94193.0,94192.0,0.3182]
[1746540787053,0.212383,94193.0,94192.0,0.1611]
[1746540787746,0.377083,94193.0,94192.0,0.1611]
[1746540790258,0.1647,94193.0,94192.0,0.3734853]
[1746540790555,0.053094,94197.0,94192.0,0.1611]
[1746540790755,0.2123808,94194.0,94193.0,0.1672]
[1746540791644,0.3802808,94194.0,94193.0,0.1672]
[1746540792041,0.212383,94193.0,94192.0,0.1611]
[1746540792350,0.379083,94193.0,94192.0,0.1611]
[1746540792854,0.3802825,94194.0,94192.0,0.3734834]
[1746540793057,0.212383,94193.0,94192.0,0.1611]
[1746540793453,0.3802814,94194.0,94192.0,0.1611]
[1746540793657,0.212383,94193.0,94192.0,0.1611]
[1746540798453,0.543983,94193.0,94192.0,0.1611]
[1746540798857,0.543983,94193.0,94190.0,0.00792472]
[1746540798858,0.2123875,94191.0,94190.0,0.00792472]
[1746540799056,0.2123943,94188.0,94187.0,1.5]
[1746540800055,0.3772943,94188.0,94187.0,1.5]
[1746540800855,0.0531013,94184.0,94178.0,0.3608]
[1746540801062,0.2124146,94179.0,94178.0,0.3608]
[1746540801254,0.2124372,94169.0,94168.0,0.1559]
[1746540801454,0.2124372,94169.0,94168.0,1.6559]
[1746540802359,0.5418372,94169.0,94168.0,0.1559]
[1746540802559,0.0531111,94166.0,94142.0,0.36868068]
[1746540802757,0.5732575,94160.0,94158.0,0.1559]
[1746540802957,0.5732575,94160.0,94159.0,1.50066]
[1746540803755,0.2124575,94160.0,94159.0,1.50066]
[1746540803962,0.0531122,94164.0,94159.0,1.50066]
[1746540804153,0.1666,94165.0,94164.0,0.2124484]
[1746540804354,0.2124484,94164.0,94163.0,0.3608]
[1746540805364,0.3771484,94164.0,94163.0,0.3608]
[1746540810161,0.3771484,94164.0,94163.0,0.5732507]
[1746540810356,0.3771484,94164.0,94163.0,0.3608]
[1746540811666,0.2124484,94164.0,94163.0,0.3608]
[1746540812465,0.2124484,94164.0,94163.0,0.5732507]
[1746540812665,0.2124484,94164.0,94163.0,0.3608]
[1746540814262,0.5339484,94164.0,94163.0,0.3608]
[1746540814465,0.2124552,94161.0,94160.0,0.1565]
[1746540815269,0.2124575,94160.0,94159.0,1.5]
[1746540820455,0.2124504,94164.0,94159.0,1.5]
[1746540820659,0.2124504,94164.0,94163.0,0.2124507]
[1746540820854,0.212453,94162.0,94161.0,0.2124544]
[1746540821057,0.0531111,94166.0,94161.0,0.1626]
[1746540821258,0.2124467,94165.0,94164.0,0.2124477]
[1746540821466,0.166,94169.0,94162.0,0.2124529]
[1746540821660,0.21245,94164.0,94162.0,0.2124529]
[1746540821865,0.21245,94164.0,94163.0,0.1626]
[1746540823370,0.2124457,94166.0,94163.0,0.1626]
[1746540823670,0.0531038,94179.0,94163.0,0.5234]
[1746540823969,0.2124259,94174.0,94173.0,0.3608]
[1746540825269,0.2124259,94174.0,94163.0,0.3608]
[1746540825270,0.2124484,94164.0,94163.0,0.3608]
[1746540826265,0.3657484,94164.0,94163.0,0.3608]
[1746540829680,0.212447,94165.0,94164.0,0.2124484]
[1746540829868,0.0531041,94179.0,94166.0,0.0531109]
[1746540830065,0.2124409,94169.0,94168.0,0.2124383]
[1746540830270,0.2124424,94167.0,94166.0,0.2124422]
[1746540830473,0.2124409,94168.0,94167.0,0.2124417]
[1746540830677,0.2124409,94168.0,94167.0,1.7124417]
[1746540831373,0.2124349,94171.0,94169.0,0.2124355]
[1746540831574,0.2124349,94171.0,94170.0,0.1559]
[1746540840693,0.1688,94175.0,94174.0,0.2124259]
[1746540840983,0.05,94198.0,94197.0,0.212374]
[1746540841175,0.1629,94204.0,94202.0,0.2123626]
[1746540841374,0.2138562,94205.0,94204.0,0.2123582]
[1746540841375,0.0015,94205.0,94204.0,0.2123582]
[1746540841574,0.213856,94205.0,94204.0,0.3161]
[1746540841880,0.40299652,94205.0,94204.0,0.3161]
[1746540842081,0.56589652,94205.0,94204.0,0.3161]
[1746540842479,0.56589652,94205.0,94204.0,0.1601]
[1746540842785,0.56589652,94205.0,94204.0,1.6601]
[1746540843682,0.35354052,94205.0,94204.0,1.8724582]
[1746540843885,0.35354052,94205.0,94204.0,1.6601]
[1746540844080,0.56589652,94205.0,94204.0,1.6601]
[1746540844281,0.71939652,94205.0,94204.0,1.6601]
[1746540844483,0.530256,94205.0,94204.0,1.6601]
[1746540846678,0.3179,94205.0,94204.0,1.6601]
[1746540846878,0.530256,94205.0,94204.0,1.6601]
[1746540847584,0.3179,94205.0,94204.0,1.6601]
[1746540847779,0.530256,94205.0,94204.0,1.6601]
[1746540847988,0.1644,94205.0,94204.0,1.8724582]
[1746540848184,0.1644,94205.0,94204.0,1.6601]
[1746540848384,0.376756,94205.0,94204.0,1.6601]
[1746540848582,0.542556,94205.0,94204.0,1.6601]
[1746540848890,0.3302,94205.0,94204.0,1.6601]
[1746540849088,0.642556,94205.0,94204.0,1.4441286]
[1746540849382,0.642556,94205.0,94171.0,0.3254]
[1746540849383,0.053101,94184.0,94171.0,0.3254]
[1746540849582,0.1655,94183.0,94171.0,0.3254]
[1746540849778,0.1655,94183.0,94179.0,0.3608]
[1746540849974,0.3608,94195.0,94180.0,0.1651]
[1746540850182,0.212393,94189.0,94183.0,0.0531009]
[1746540850386,0.2123945,94188.0,94185.0,0.2124004]
[1746540850589,0.2123966,94187.0,94186.0,0.3206]
[1746540850782,0.2123966,94187.0,94186.0,0.1555]
[1746540851587,0.2124078,94182.0,94181.0,1.5]
[1746540851788,0.2124124,94180.0,94179.0,0.3608]
[1746540852190,0.3178,94188.0,94180.0,0.0531031]
[1746540852385,0.163,94188.0,94179.0,2.0259]
[1746540852585,0.2123847,94193.0,94190.0,0.2123888]
[1746540852791,0.2123847,94193.0,94191.0,0.5392867]
[1746540853091,0.3238,94194.0,94192.0,0.2123833]
[1746540853289,0.3238,94194.0,94193.0,0.3296]
[1746540853486,0.5361808,94194.0,94193.0,0.3296]
[1746540854381,0.5361808,94194.0,94193.0,0.1618]
[1746540854792,0.2124124,94180.0,94171.0,0.1549]
[1746540854977,0.2124124,94180.0,94172.0,0.3296]
[1746540855183,0.2124124,94180.0,94173.0,0.2124263]
[1746540855490,0.2124124,94180.0,94172.0,0.3827075]
[1746540855688,0.5333124,94180.0,94172.0,0.3296]
[1746540856083,0.5333124,94180.0,94173.0,0.0531067]
[1746540856279,0.3209,94180.0,94172.0,0.3193]
[1746540856483,0.5333124,94180.0,94173.0,0.2124271]
[1746540856684,0.5333124,94180.0,94172.0,0.3193]
[1746540856890,0.5333124,94180.0,94174.0,0.2124258]
[1746540857289,0.5333124,94180.0,94174.0,0.2124249]
[1746540857794,0.5333124,94180.0,94175.0,0.2124236]
[1746540857996,0.5333124,94180.0,94173.0,0.053107]
[1746540858202,0.5333124,94180.0,94176.0,0.2124202]
[1746540858392,0.5333124,94180.0,94174.0,0.0531059]
[1746540858692,0.5333124,94180.0,94175.0,0.0531058]
[1746540858994,0.5333124,94180.0,94177.0,0.2124189]
[1746540859297,0.5333124,94180.0,94172.0,0.38056594]
[1746540859598,0.5333124,94180.0,94172.0,0.53988794]
[1746540859889,0.5333124,94180.0,94173.0,0.0531069]
[1746540860094,0.5333124,94180.0,94174.0,0.0531059]
[1746540860289,0.5333124,94180.0,94175.0,0.2124234]
[1746540860493,0.5333124,94180.0,94177.0,0.2124191]
[1746540860691,0.5333124,94180.0,94175.0,0.2124224]
[1746540861089,0.5333124,94180.0,94176.0,0.165]
[1746540861694,0.5333124,94180.0,94178.0,0.2124161]
[1746540861999,0.5333124,94180.0,94177.0,0.1605]
[1746540862696,0.5333124,94180.0,94176.0,0.3774214]
[1746540862899,0.5333124,94180.0,94176.0,0.165]
[1746540863103,0.5333124,94180.0,94179.0,0.3608]
[1746540864306,0.0530901,94204.0,94179.0,0.71698]
[1746540864596,0.1592,94199.0,94196.0,0.5731757]
[1746540864796,0.2123608,94203.0,94199.0,0.2123685]
[1746540865001,0.2123629,94202.0,94200.0,0.3276]
[1746540865204,0.212365,94201.0,94200.0,0.3276]
[1746540865598,0.2653808,94203.0,83592.0,0.00074806]
[1746540865599,0.2123898,94190.0,94189.0,1.5]
[1746540866099,0.2124417,94167.0,94166.0,0.00067]
[1746540867294,0.5357417,94167.0,94166.0,0.00067]
[1746540871603,0.6419377,94167.0,94166.0,0.00067]
[1746540872307,0.2124733,94153.0,94152.0,0.00159316]
[1746540872495,0.6732733,94153.0,94152.0,0.00159316]
[1746540872700,1.0340733,94153.0,94152.0,0.00159316]
[1746540873215,1.2436733,94153.0,94152.0,0.00159316]
[1746540873801,1.3436733,94153.0,94152.0,0.00159316]
[1746540874606,1.4498853,94153.0,94152.0,0.00159316]
[1746540875502,1.3498853,94153.0,94152.0,0.00159316]
[1746540877109,2.0293853,94153.0,94152.0,0.00159316]
[1746540877407,2.1293853,94153.0,94152.0,0.00159316]
[1746540877609,2.1293853,94153.0,94145.0,0.00106219]
[1746540877610,0.2124891,94146.0,94145.0,0.00106219]
[1746540877798,0.8919891,94146.0,94145.0,0.00106219]
[1746540878603,1.0501891,94146.0,94145.0,0.00106219]
[1746540880303,1.0501891,94146.0,94132.0,0.1672]
[1746540880304,0.2125184,94133.0,94132.0,0.1672]
[1746540880603,0.6733184,94133.0,94132.0,0.1672]
[1746540881508,0.5733184,94133.0,94132.0,0.1672]
[1746540881704,0.2125455,94121.0,94120.0,0.1611]
[1746540884514,0.2125455,94121.0,94120.0,0.3736472]
[1746540884713,0.2125455,94121.0,94120.0,0.1611]
[1746540887711,0.21255,94119.0,94118.0,0.1596]
[1746540888319,0.53815,94119.0,94118.0,0.1596]
[1746540890618,0.53815,94119.0,94118.0,0.3206]
[1746540891826,0.53815,94119.0,94118.0,0.1596]
[1746540892518,0.21255,94119.0,94118.0,0.3214]
[1746540894721,0.37445,94119.0,94118.0,0.3214]
[1746540895021,0.37445,94119.0,94118.0,0.1596]
[1746540898122,0.47445,94119.0,94118.0,0.1596]
[1746540899011,0.47445,94119.0,94117.0,0.00159375]
[1746540899218,0.2125703,94110.0,94109.0,0.1632]
[1746540899418,0.5733703,94110.0,94109.0,0.1632]
[1746540900023,0.8941703,94110.0,94109.0,0.1632]
[1746540900227,0.2125703,94110.0,94109.0,0.1632]
[1746540900423,0.00778423,94117.0,94114.0,0.0531403]
[1746540900623,0.22033873,94117.0,94116.0,0.3608]
[1746540900920,0.22033873,94117.0,94116.0,2.021]
[1746540901123,0.2125545,94117.0,94116.0,2.199]
[1746540901329,0.4139344,94125.0,94116.0,2.199]
[1746540901529,0.2125475,94121.0,94120.0,0.2125455]
[1746540901826,0.2125475,94121.0,94120.0,0.1548]
[1746540902128,0.2125475,94121.0,94120.0,0.3328]
[1746540902334,0.3608,94125.0,94120.0,0.3328]
[1746540902520,0.001,94146.0,94134.0,0.2125162]
[1746540902922,0.001,94146.0,94145.0,0.2124913]
[1746540903121,0.001,94146.0,94145.0,2.2512913]
[1746540903529,0.001,94146.0,94145.0,2.0388]
[1746540903719,0.2134891,94146.0,94145.0,2.2512913]
[1746540904029,0.001,94146.0,94145.0,2.2512913]
[1746540904229,0.2134845,94146.0,94145.0,2.0388]